fUSD/lending_fUSD_20241223
["ID","MTS","AMOUNT","RATE_DAILY","PERIOD"]
[346425639,1734955872753,-1744.94,0.00019726,2]
[346425640,1734955872762,-6354.07,0.00019726,2]
[346425641,1734955872771,-5486.21,0.00019726,2]
[346425642,1734955872781,-6128.37,0.00019726,2]
[346425643,1734955872790,-7903.2,0.00019726,2]
[346425644,1734955872799,-500.0,0.00019726,2]
[346425645,1734955872808,-5909.34,0.00019726,2]
[346425646,1734955872817,-500.0,0.00019726,2]
[346425647,1734955872826,-2296.17,0.00019726,2]
[346425648,1734955872836,-500.0,0.00019726,2]
[346425649,1734955872845,-1688.14,0.00019726,2]
[346425650,1734955872854,-500.0,0.00019726,2]
[346425651,1734955872863,-500.0,0.00019726,2]
[346425652,1734955872873,-237.29230057,0.00019726,2]
[346425653,1734955872882,-2330.59,0.00019726,2]
[346425654,1734955872892,-500.0,0.00019726,2]
[346425655,1734955872901,-10374.59,0.00019726,2]
[346425656,1734955872910,-1047.13,0.00019726,2]
[346425657,1734955872919,-500.0,0.00019726,2]
[346425658,1734955872929,-500.0,0.00019726,2]
[346425659,1734955872938,-500.0,0.00019726,2]
[346425660,1734955872947,-500.0,0.00019726,2]
[346425661,1734955872955,-6850.88,0.00019726,2]
[346425662,1734955872965,-500.0,0.00019726,2]
[346425663,1734955872974,-634.25,0.00019726,2]
[346425664,1734955872983,-11471.55,0.00019726,2]
[346425665,1734955872993,-10573.84,0.00019726,2]
[346425666,1734955873002,-2578.16,0.00019726,2]
[346425667,1734955873012,-500.0,0.00019726,2]
[346425668,1734955873021,-500.0,0.00019726,2]
[346425669,1734955873030,-493.06495457,0.00019726,2]
[346425670,1734955873039,-500.0,0.00019726,2]
[346425671,1734955873048,-5580.12,0.00019726,2]
[346425672,1734955873057,-2088.52,0.00019726,2]
[346425673,1734955873066,-500.0,0.00019726,2]
[346425674,1734955873075,-500.0,0.00019726,2]
[346425675,1734955873084,-18622.93,0.00019726,2]
[346425676,1734955873092,-726.04,0.00019726,2]
[346425677,1734955873101,-3930.38,0.00019726,2]
[346425678,1734955873110,-500.0,0.00019726,2]
[346425679,1734955873119,-500.0,0.00019726,2]
[346425680,1734955873128,-500.0,0.00019726,2]
[346425681,1734955873139,-574.82,0.00019726,2]
[346425682,1734955873148,-4885.92,0.00019726,2]
[346425683,1734955873157,-500.0,0.00019726,2]
[346425684,1734955873166,-791.44,0.00019726,2]
[346425685,1734955873175,-17655.9,0.00019726,2]
[346425686,1734955873184,-3127.31,0.00019726,2]
[346425687,1734955873193,-500.0,0.00019726,2]
[346425688,1734955873202,-1026.76,0.00019726,2]
[346425689,1734955873211,-2000.0,0.00019726,2]
[346425690,1734955873222,-500.0,0.00019726,2]
[346425691,1734955873231,-500.0,0.00019726,2]
[346425692,1734955873240,-2393.42,0.00019726,2]
[346425693,1734955873249,-501.12,0.00019726,2]
[346425694,1734955873259,-1336.13,0.00019726,2]
[346425695,1734955873268,-859.36,0.00019726,2]
[346425696,1734955873277,-200.0,0.00019726,2]
[346425697,1734955873286,-17899.35,0.00019726,2]
[346425698,1734955873296,-500.0,0.00019726,2]
[346425699,1734955873305,-1185.03,0.00019726,2]
[346425700,1734955873314,-1440.83,0.00019726,2]
[346425701,1734955873324,-13675.41,0.00019726,2]
[346425702,1734955873333,-500.0,0.00019726,2]
[346425703,1734955873342,-500.0,0.00019726,2]
[346425704,1734955873352,-584.53,0.00019726,2]
[346425705,1734955873361,-500.0,0.00019726,2]
[346425706,1734955873370,-500.0,0.00019726,2]
[346425707,1734955873379,-500.0,0.00019726,2]
[346425708,1734955873389,-1382.6,0.00019726,2]
[346425709,1734955873398,-738.68,0.00019726,2]
[346425710,1734955873407,-1304.05,0.00019726,2]
[346425711,1734955873416,-2841.26,0.00019726,2]
[346425712,1734955873425,-500.0,0.00019726,2]
[346425713,1734955873434,-611.73,0.00019726,2]
[346425714,1734955873443,-5563.2,0.00019726,2]
[346425715,1734955873452,-1826.31,0.00019726,2]
[346425716,1734955873461,-36643.78,0.00019726,2]
[346425717,1734955873471,-1499.4,0.00019726,2]
[346425718,1734955873480,-500.0,0.00019726,2]
[346425719,1734955873489,-500.0,0.00019726,2]
[346425720,1734955873498,-500.0,0.00019726,2]
[346425721,1734955873507,-2635.3,0.00019726,2]
[346425722,1734955873519,-780.83,0.00019726,2]
[346425723,1734955873529,-500.0,0.00019726,2]
[346425724,1734955873538,-651.81,0.00019726,2]
[346425725,1734955873547,-500.0,0.00019726,2]
[346425726,1734955873556,-500.0,0.00019726,2]
[346425727,1734955873566,-1128.21,0.00019726,2]
[346425728,1734955873575,-1930.03,0.00019726,2]
[346425729,1734955873584,-4692.12,0.00019726,2]
[346425730,1734955873594,-500.0,0.00019726,2]
[346425731,1734955873604,-1139.1,0.00019726,2]
[346425732,1734955873613,-1309.61,0.00019726,2]
[346425733,1734955873622,-500.0,0.00019726,2]
[346425734,1734955873631,-4091.17,0.00019726,2]
[346425735,1734955873641,-1204.57,0.00019726,2]
[346425736,1734955873650,-500.0,0.00019726,2]
[346425737,1734955873659,-500.0,0.00019726,2]
[346425738,1734955873668,-530.46,0.00019726,2]
[346425739,1734955873677,-500.0,0.00019726,2]
[346425740,1734955873686,-500.0,0.00019726,2]
[346425741,1734955873695,-500.0,0.00019726,2]
[346425742,1734955873704,-4647.18,0.00019726,2]
[346425743,1734955873714,-500.0,0.00019726,2]
[346425744,1734955873724,-500.0,0.00019726,2]
[346425745,1734955873734,-5873.71,0.00019726,2]
[346425746,1734955873743,-1226.61,0.00019726,2]
[346425747,1734955873753,-3039.26,0.00019726,2]
[346425748,1734955873762,-201.86,0.00019726,2]
[346425749,1734955873771,-150.0,0.00019728,2]
[346425750,1734955873780,-150.0,0.00019738,2]
[346425751,1734955873790,-653.71808181,0.0001974,2]
[346425752,1734955873799,-207.0,0.0001975,2]
[346425753,1734955873809,-209.0,0.0001975,2]
[346425754,1734955873818,-209.0,0.0001975,2]
[346425755,1734955873827,-209.0,0.0001975,2]
[346425756,1734955873836,-150.0,0.0001975,2]
[346425757,1734955873845,-150.0,0.00019753,2]
[346425758,1734955873854,-152.0,0.00019755,2]
[346425759,1734955873863,-152.0,0.00019755,2]
[346425760,1734955873873,-152.0,0.00019755,2]
[346425761,1734955873882,-152.0,0.00019755,2]
[346425762,1734955873891,-152.0,0.00019755,2]
[346425763,1734955873900,-152.0,0.00019755,2]
[346425764,1734955873909,-152.0,0.00019755,2]
[346425765,1734955873919,-152.0,0.00019755,2]
[346425766,1734955873928,-152.0,0.00019755,2]
[346425767,1734955873938,-152.0,0.00019755,2]
[346425768,1734955873947,-152.0,0.00019755,2]
[346425769,1734955873956,-152.0,0.00019755,2]
[346425770,1734955873965,-152.0,0.00019755,2]
[346425771,1734955873975,-152.0,0.00019755,2]
[346425772,1734955873984,-152.0,0.00019755,2]
[346425773,1734955873994,-152.0,0.00019755,2]
[346425774,1734955874003,-152.0,0.00019755,2]
[346425775,1734955874013,-152.0,0.00019755,2]
[346425776,1734955874023,-208.64,0.00019755,2]
[346425777,1734955874033,-150.0,0.00019757,2]
[346425778,1734955874042,-150.0,0.00019761,2]
[346425779,1734955874052,-300.0,0.00019762,2]
[346425780,1734955874061,-150.0,0.00019763,2]
[346425781,1734955874071,-150.0,0.00019763,2]
[346425782,1734955874081,-187.34822066,0.00019763,2]
[346425783,1734955874090,-150.0,0.00019764,2]
[346425784,1734955874100,-150.0,0.00019764,2]
[346425785,1734955874110,-150.0,0.00019765,2]
[346425786,1734955874119,-150.0,0.00019766,2]
[346425787,1734955874246,-150.0,0.00019768,2]
[346425788,1734955874256,-150.0,0.00019769,2]
[346425789,1734955874266,-150.0,0.00019769,2]
[346425790,1734955874276,-150.0,0.0001977,2]
[346425791,1734955874286,-1500.0,0.0001977,2]
[346425792,1734955874296,-500.0,0.00019773,2]
[346425793,1734955874306,-500.0,0.00019773,2]
[346425794,1734955874315,-1500.0,0.00019774,2]
[346425795,1734955874326,-150.0,0.00019775,2]
[346425796,1734955874336,-166.0,0.00019775,2]
[346425797,1734955874345,-151.0,0.00019775,2]
[346425798,1734955874355,-252.72,0.00019775,2]
[346425799,1734955874364,-150.0,0.00019778,2]
[346425800,1734955874374,-150.0,0.00019778,2]
[346425801,1734955874383,-150.0,0.00019779,2]
[346425802,1734955874393,-152.0,0.0001978,2]
[346425803,1734955874403,-152.0,0.0001978,2]
[346425804,1734955874412,-152.0,0.0001978,2]
[346425805,1734955874421,-152.0,0.0001978,2]
[346425806,1734955874431,-150.0,0.00019782,2]
[346425807,1734955874440,-150.0,0.00019786,2]
[346425808,1734955874449,-150.0,0.00019787,2]
[346425809,1734955874459,-150.0,0.00019788,2]
[346425810,1734955874468,-150.0,0.0001979,2]
[346425811,1734955874478,-150.0,0.00019791,2]
[346425812,1734955874487,-150.0,0.00019795,2]
[346425813,1734955874496,-150.0,0.00019796,2]
[346425814,1734955874505,-150.0,0.00019798,2]
[346425815,1734955874519,-300.0,0.000198,2]
[346425816,1734955874528,-1500.0,0.000198,2]
[346425817,1734955874538,-934.56421846,0.000198,2]
[346425818,1734955874547,-150.95925267,0.000198,2]
[346425819,1734955874556,-150.0,0.00019802,2]
[346425820,1734955874565,-150.0,0.00019804,2]
[346425821,1734955874575,-155.82571011,0.00019808,2]
[346425822,1734955874585,-172.617837,0.00019813,2]
[346425823,1734955874595,-172.617837,0.00019813,2]
[346425824,1734955874604,-182.482872,0.00019813,2]
[346425825,1734955874613,-150.0,0.00019815,2]
[346425826,1734955874623,-153.28567617,0.00019819,2]
[346425827,1734955874633,-150.0,0.00019821,2]
[346425828,1734955874643,-150.0,0.00019822,2]
[346425829,1734955874653,-150.0,0.00019827,2]
[346425830,1734955874662,-1500.0,0.00019827,2]
[346425831,1734955874671,-150.0,0.00019828,2]
[346425832,1734955874680,-150.0,0.0001983,2]
[346425833,1734955874690,-150.0,0.00019831,2]
[346425834,1734955874699,-150.0,0.00019831,2]
[346425835,1734955874709,-150.0,0.00019831,2]
[346425836,1734955874719,-150.0,0.00019833,2]
[346425837,1734955874729,-150.0,0.00019834,2]
[346425838,1734955874739,-150.0,0.00019834,2]
[346425839,1734955874748,-150.0,0.00019835,2]
[346425840,1734955874758,-150.0,0.00019836,2]
[346425841,1734955874767,-1500.0,0.00019838,2]
[346425842,1734955874777,-150.0,0.0001984,2]
[346425843,1734955874786,-150.0,0.00019843,2]
[346425844,1734955874795,-150.0,0.00019844,2]
[346425845,1734955874805,-150.0,0.00019849,2]
[346425846,1734955874815,-150.0,0.00019849,2]
[346425847,1734955874825,-4000.0,0.0001985,2]
[346425848,1734955874834,-166.0,0.00019851,2]
[346425849,1734955874844,-152.0,0.00019851,2]
[346425850,1734955874853,-152.0,0.00019851,2]
[346425851,1734955874862,-152.0,0.00019851,2]
[346425852,1734955874872,-152.0,0.00019851,2]
[346425853,1734955874881,-251.09,0.00019851,2]
[346425854,1734955874892,-150.0,0.00019854,2]
[346425855,1734955874901,-150.0,0.00019856,2]
[346425856,1734955874911,-789.26,0.00019861,2]
[346425857,1734955874921,-150.0,0.00019864,2]
[346425858,1734955874930,-250.0,0.00019866,2]
[346425859,1734955874939,-151.0,0.00019866,2]
[346425860,1734955874949,-151.0,0.00019866,2]
[346425861,1734955874959,-151.0,0.00019866,2]
[346425862,1734955874968,-151.0,0.00019866,2]
[346425863,1734955874977,-151.0,0.00019866,2]
[346425864,1734955874987,-151.0,0.00019866,2]
[346425865,1734955874997,-151.0,0.00019866,2]
[346425866,1734955875007,-151.0,0.00019866,2]
[346425867,1734955875017,-151.0,0.00019866,2]
[346425868,1734955875027,-151.0,0.00019866,2]
[346425869,1734955875036,-151.0,0.00019866,2]
[346425870,1734955875046,-151.0,0.00019866,2]
[346425871,1734955875055,-190.0,0.00019866,2]
[346425872,1734955875066,-150.0,0.00019868,2]
[346425873,1734955875075,-150.0,0.00019871,2]
[346425874,1734955875084,-150.0,0.00019871,2]
[346425875,1734955875094,-150.0,0.00019876,2]
[346425876,1734955875103,-151.0,0.00019877,2]
[346425877,1734955875113,-151.0,0.00019877,2]
[346425878,1734955875123,-151.0,0.00019877,2]
[346425879,1734955875133,-151.0,0.00019877,2]
[346425880,1734955875143,-151.0,0.00019877,2]
[346425881,1734955875152,-151.0,0.00019877,2]
[346425882,1734955875162,-231.36,0.00019877,2]
[346425883,1734955875171,-150.0,0.00019878,2]
[346425884,1734955875181,-3832.46553893,0.00019879,2]
[346425885,1734955875191,-150.0,0.00019879,2]
[346425886,1734955875201,-4000.0,0.0001988,2]
[346425887,1734955875211,-150.0,0.00019884,2]
[346425888,1734955875223,-250.0,0.0001989,2]
[346425889,1734955875232,-209.86,0.0001989,2]
[346425890,1734955875242,-172.0,0.0001989,2]
[346425891,1734955875251,-172.0,0.0001989,2]
[346425892,1734955875262,-172.0,0.0001989,2]
[346425893,1734955875272,-172.0,0.0001989,2]
[346425894,1734955875281,-172.0,0.0001989,2]
[346425895,1734955875291,-152.0,0.0001989,2]
[346425896,1734955875301,-152.0,0.0001989,2]
[346425897,1734955875311,-152.0,0.0001989,2]
[346425898,1734955875321,-150.0,0.00019899,2]
[346425899,1734955875330,-150.0,0.00019899,2]
[346425900,1734955875339,-156.93316754,0.000199,2]
[346425901,1734955875349,-156.93316754,0.000199,2]
[346425902,1734955875360,-156.93316754,0.000199,2]
[346425903,1734955875370,-156.93316754,0.000199,2]
[346425904,1734955875379,-156.93316754,0.000199,2]
[346425905,1734955875389,-156.93316754,0.000199,2]
[346425906,1734955875399,-156.93316754,0.000199,2]
[346425907,1734955875408,-156.93,0.000199,2]
[346425908,1734955875419,-354704.1354352,0.000199,2]
[346425909,1734955875428,-4996.15513601,0.000199,2]
[346425910,1734955875437,-156.93316754,0.000199,2]
[346425911,1734955875447,-156.93316754,0.000199,2]
[346425912,1734955875457,-156.93316754,0.000199,2]
[346425913,1734955875468,-156.93316754,0.000199,2]
[346425914,1734955875479,-156.93316754,0.000199,2]
[346425915,1734955875488,-156.93316754,0.000199,2]
[346425916,1734955875498,-156.93316754,0.000199,2]
[346425917,1734955875509,-156.93316754,0.000199,2]
[346425918,1734955875522,-156.93316754,0.000199,2]
[346425919,1734955875532,-156.93316754,0.000199,2]
[346425920,1734955875541,-156.93316754,0.000199,2]
[346425921,1734955875551,-156.93,0.000199,2]
[346425922,1734955875561,-187.34822066,0.000199,2]
[346425923,1734955875570,-150.0,0.00019901,2]
[346425924,1734955875580,-150.0,0.00019902,2]
[346425925,1734955875591,-150.0,0.00019903,2]
[346425926,1734955875601,-150.0,0.00019905,2]
[346425927,1734955875611,-150.0,0.00019905,2]
[346425928,1734955875621,-150.0,0.00019906,2]
[346425929,1734955875630,-150.0,0.00019909,2]
[346425930,1734955875639,-150.0,0.00019915,2]
[346425931,1734955875650,-150.0,0.00019918,2]
[346425932,1734955875660,-150.0,0.0001992,2]
[346425933,1734955875669,-150.0,0.00019922,2]
[346425934,1734955875679,-200.0,0.00019923,2]
[346425935,1734955875689,-200.0,0.00019923,2]
[346425936,1734955875698,-200.0,0.00019923,2]
[346425937,1734955875708,-150.0,0.00019925,2]
[346425938,1734955875722,-150.0,0.00019927,2]
[346425939,1734955875735,-150.0,0.00019928,2]
[346425940,1734955875744,-150.0,0.00019931,2]
[346425941,1734955875754,-152.0,0.00019931,5]
[346425942,1734955875764,-150.0,0.00019937,2]
[346425943,1734955875773,-150.0,0.00019942,2]
[346425944,1734955875783,-150.0,0.00019943,2]
[346425945,1734955875793,-150.0,0.00019944,2]
[346425946,1734955875803,-150.0,0.00019945,2]
[346425947,1734955875813,-150.0,0.0001995,2]
[346425948,1734955875822,-150.0,0.0001995,2]
[346425949,1734955875832,-1500.0,0.0001995,2]
[346425950,1734955875841,-202.89,0.00019952,2]
[346425951,1734955875851,-150.0,0.00019953,2]
[346425952,1734955875860,-150.0,0.00019957,2]
[346425953,1734955875870,-150.0,0.00019959,2]
[346425954,1734955875880,-150.0,0.00019961,2]
[346425955,1734955875889,-150.0,0.00019965,2]
[346425956,1734955875900,-150.0,0.00019969,2]
[346425957,1734955875910,-150.0,0.00019969,2]
[346425958,1734955875920,-150.0,0.00019969,2]
[346425959,1734955875929,-400.0,0.0001997,2]
[346425960,1734955875938,-400.0,0.0001997,2]
[346425961,1734955875947,-480.28701443,0.0001997,2]
[346425962,1734955875956,-583.73875566,0.0001997,2]
[346425963,1734955875966,-150.0,0.0001997,2]
[346425964,1734955875983,-150.0,0.00019971,2]
[346425965,1734955875994,-500.0,0.00019973,2]
[346425966,1734955876004,-500.0,0.00019973,2]
[346425967,1734955876014,-500.0,0.00019973,2]
[346425968,1734955876024,-500.0,0.00019973,2]
[346425969,1734955876034,-500.0,0.00019973,2]
[346425970,1734955876044,-500.0,0.00019973,2]
[346425971,1734955876054,-150.0,0.00019974,2]
[346425972,1734955876064,-150.0,0.00019975,2]
[346425973,1734955876073,-150.0,0.00019975,2]
[346425974,1734955876083,-4000.0,0.0001998,2]
[346425975,1734955876093,-150.0,0.00019981,2]
[346425976,1734955876103,-150.0,0.00019983,2]
[346425977,1734955876113,-73450.0,0.00019985,2]
[346425978,1734955876124,-150.0,0.00019985,2]
[346425979,1734955876133,-4648.1451974,0.00019986,2]
[346425980,1734955876143,-2495.4792545,0.00019986,2]
[346425981,1734955876152,-7871.3985971,0.00019986,2]
[346425982,1734955876162,-6350.7875045,0.00019986,2]
[346425983,1734955876172,-4830.1764118,0.00019986,2]
[346425984,1734955876181,-3309.5653192,0.00019986,2]
[346425985,1734955876190,-1788.9542266,0.00019986,2]
[346425986,1734955876199,-1399.8726,0.00019986,2]
[346425987,1734955876208,-1129.4426659,0.00019986,2]
[346425988,1734955876220,-859.0127318,0.00019986,2]
[346425989,1734955876232,-588.5827977,0.00019986,2]
[346425990,1734955876242,-318.1528636,0.00019986,2]
[346425991,1734955876252,-35493.7003782,0.00019986,2]
[346425992,1734955876261,-40391.1558738,0.00019986,2]
[346425993,1734955876271,-45288.6113695,0.00019986,2]
[346425994,1734955876281,-50186.0668651,0.00019986,2]
[346425995,1734955876291,-55083.5223608,0.00019986,2]
[346425996,1734955876300,-4000.0,0.0001999,2]
[346425997,1734955876309,-6915.02218115,0.0001999,2]
[346425998,1734955876319,-22973.07693396,0.00019992,2]
[346425999,1734955876329,-500.0,0.00019992,2]
[346426000,1734955876338,-500.0,0.00019992,2]
[346426001,1734955876347,-500.0,0.00019992,2]
[346426002,1734955876357,-500.0,0.00019992,2]
[346426003,1734955876367,-500.0,0.00019992,2]
[346426004,1734955876697,-500.0,0.00019992,2]
[346426005,1734955876710,-500.0,0.00019992,2]
[346426006,1734955876723,-500.0,0.00019992,2]
[346426007,1734955876733,-500.0,0.00019992,2]
[346426008,1734955876742,-500.0,0.00019992,2]
[346426009,1734955876752,-789.26,0.00019998,2]
[346426010,1734955876762,-1000.0,0.00019999,2]
[346426011,1734955876772,-78201.8,0.00019999,2]
[346426012,1734955876782,-30478.84290823,0.00019999,2]
[346426013,1734955876792,-857.496033,0.00019999,2]
[346426014,1734955876801,-150.0,0.00019999,2]
[346426015,1734955876810,-36423.35,0.00019999,2]
[346426016,1734955876820,-1487.56,0.00019999,2]
[346426017,1734955876829,-3666.05,0.00019999,2]
[346426018,1734955876838,-4555.67,0.00019999,2]
[346426019,1734955876848,-3675.03,0.00019999,2]
[346426020,1734955876859,-7948.92,0.00019999,2]
[346426021,1734955876868,-779.62,0.00019999,2]
[346426022,1734955876878,-1594.44,0.00019999,2]
[346426023,1734955876887,-3672.66,0.00019999,2]
[346426024,1734955876897,-4685.17,0.00019999,2]
[346426025,1734955876907,-3130.45,0.00019999,2]
[346426026,1734955876917,-8487.84,0.00019999,2]
[346426027,1734955876926,-5031.33,0.00019999,2]
[346426028,1734955876936,-334.0,0.0002,2]
[346426029,1734955876946,-151.0,0.0002,2]
[346426030,1734955876955,-151.0,0.0002,2]
[346426031,1734955876965,-151.0,0.0002,2]
[346426032,1734955876977,-151.0,0.0002,2]
[346426033,1734955876986,-151.0,0.0002,2]
[346426034,1734955876996,-151.0,0.0002,2]
[346426035,1734955877005,-151.0,0.0002,2]
[346426036,1734955877015,-151.0,0.0002,2]
[346426037,1734955877024,-151.0,0.0002,2]
[346426038,1734955877033,-151.0,0.0002,2]
[346426039,1734955877043,-151.0,0.0002,2]
[346426040,1734955877052,-151.0,0.0002,2]
[346426041,1734955877062,-151.0,0.0002,2]
[346426042,1734955877071,-151.0,0.0002,2]
[346426043,1734955877081,-151.0,0.0002,2]
[346426044,1734955877091,-151.0,0.0002,2]
[346426045,1734955877101,-151.0,0.0002,2]
[346426046,1734955877110,-151.0,0.0002,2]
[346426047,1734955877120,-151.0,0.0002,2]
[346426048,1734955877130,-275.9,0.0002,2]
[346426049,1734955877139,-12592.28471667,0.0002,3]
[346426050,1734955877149,-19006.22073937,0.0002,2]
[346426051,1734955877159,-368001.3348884,0.0002,3]
[346426052,1734955877837,-2632916.77908736,0.0002,3]
[346426053,1734955877847,-13130.9838753,0.0002,10]
[346426054,1734955877857,-947.18601221,0.0002,2]
[346426055,1734955877867,-150.0,0.0002,2]
[346426056,1734955877876,-150.0,0.0002,2]
[346426057,1734955877889,-500.0,0.0002,2]
[346426058,1734955877899,-500.0,0.0002,2]
[346426059,1734955877908,-3231.0,0.0002,2]
[346426060,1734955877918,-1746.0,0.0002,2]
[346426061,1734955877928,-2276137.91063114,0.0002,2]
[346426062,1734955877971,-1537.03952318,0.0002,2]
[346426063,1734955877982,-774.6985844,0.0002,2]
[346426064,1734955878954,-937.452366,0.00016392,2]
[346426065,1734955878965,-261.41531425,0.00016392,2]
[346426066,1734955878978,-3476.84297655,0.00016392,2]
[346426067,1734955878987,-1101.0,0.00018592,2]
[346426068,1734955878996,-5424.1386074,0.00019986,2]
[346426069,1734955879006,-6172.566558,0.00019986,2]
[346426070,1734955879016,-6920.9945085,0.00019986,2]
[346426071,1734955879025,-7669.4224591,0.00019986,2]
[346426072,1734955879034,-37678.2604228,0.0002,2]
[346426073,1734955879045,-1024.40731465,0.0002,2]
[346426074,1734955879083,-800.86626729,0.0002,2]
[346426075,1734955879094,-361.45361106,0.0002,2]
[346426076,1734955879105,-486.73025273,0.0002,2]
[346426077,1734955879116,-18675.09157636,0.0002,2]
[346426078,1734955879143,-9535.7135776,0.0002,2]
[346426079,1734955879154,-8190.9999999,0.0002,2]
[346426080,1734955879166,-4220.74957971,0.0002,2]
[346426081,1734955879181,-10268.58766506,0.0002,2]
[346426082,1734955879192,-6229.36169738,0.0002,2]
[346426083,1734955879204,-735.22143879,0.0002,2]
[346426084,1734955879215,-1034.3555,0.0002,2]
[346426085,1734955879232,-13520.5,0.0002,2]
[346426086,1734955879255,-8417.8504097,0.00019986,2]
[346426087,1734955879265,-13642.63122418,0.0002,2]
[346426088,1734955879277,-204249.51414004,0.0002,2]
[346426089,1734955879288,-358985.0482277,0.0002,2]
[346426090,1734955879300,-44796.00034188,0.0002,2]
[346426091,1734955879312,-1155.2365606,0.0002,2]
[346426092,1734955879324,-279.714,0.0002,2]
[346426093,1734955879335,-492.67199996,0.0002,2]
[346426094,1734955879346,-451.63100164,0.0002,2]
[346426095,1734955879361,-245730.96436882,0.0002,2]
[346426096,1734955880242,-500.0,0.00019178,2]
[346426097,1734955880251,-500.0,0.00019178,2]
[346426098,1734955880260,-727.72,0.00019178,2]
[346426099,1734955880269,-208.18577711,0.00019452,2]
[346426100,1734955880281,-291.81422289,0.00019452,2]
[346426101,1734955880291,-500.0,0.00019726,2]
[346426102,1734955880300,-5980.06625448,0.0002,2]
[346426103,1734955880311,-282456.31158879,0.0002,2]
[346426104,1734955880323,-637.83542644,0.0002,2]
[346426105,1734955880334,-362.44959872,0.0002,2]
[346426106,1734955880346,-6862.68327044,0.0002,2]
[346426107,1734955880507,-48093.54333983,0.0002,2]
[346426108,1734955880533,-727.72,0.00019452,2]
[346426109,1734955880544,-1578.73190781,0.0002,2]
[346426110,1734955880555,-693.71658246,0.0002,2]
[346426111,1734955880566,-837.98971648,0.0002,2]
[346426112,1734955880577,-2654.94895016,0.0002,2]
[346426113,1734955880609,-2025.00002,0.0002,2]
[346426114,1734955880620,-325.95661418,0.0002,2]
[346426115,1734955880631,-80313.82007255,0.0002,2]
[346426116,1734955880643,-410.0,0.0002,2]
[346426117,1734955880658,-6800.0,0.0002,2]
[346426118,1734955880668,-2358.24575304,0.0002,2]
[346426119,1734955880679,-13437.90495304,0.0002,2]
[346426120,1734955880690,-16166.72813311,0.0002,2]
[346426121,1734955880706,-269.50884,0.0002,2]
[346426122,1734955880725,-31544.65967254,0.0002,2]
[346426123,1734955880739,-504.09366685,0.0002,2]
[346426124,1734955880793,-683.4662066,0.0002,2]
[346426125,1734955880804,-4912.75,0.0002,2]
[346426126,1734955880815,-556.27274948,0.0002,2]
[346426127,1734955880826,-4119.16540577,0.0002,2]
[346426128,1734955880861,-3415.66449189,0.0002,2]
[346426129,1734955880872,-522.01898272,0.0002,2]
[346426130,1734955880891,-362.32259723,0.00019726,2]
[346426131,1734955880903,-365.39740277,0.00019726,2]
[346426132,1734955880911,-9232.80259723,0.0002,2]
[346426133,1734955880922,-16650.0,0.0002,2]
[346426134,1734955880933,-9514.47,0.0002,2]
[346426144,1734957031847,-450.0,0.00013,2]
[346426145,1734957031857,-500.0,0.00015,2]
[346426146,1734957031867,-2600.0,0.0001578,2]
[346426147,1734957031877,-982.31055119,0.0001578,2]